bitfinex-derivatives/quotes_SOLF0:USTF0_20260310
["timestamp","ask_amount","ask_price","bid_price","bid_amount"]
[1773155338321,8.42368531,87.948,87.891,3.78838998]
[1773155338623,8.42368531,87.968,87.891,3.78838998]
[1773155338822,8.42368531,87.967,87.891,3.78838998]
[1773155339122,8.42368531,87.966,87.923,10.234]
[1773155339319,8.42368531,87.965,87.923,10.234]
[1773155339522,0.00068531,87.964,87.946,10.232]
[1773155339713,3.97817226,87.991,87.929,3.78838998]
[1773155340513,3.97817226,87.991,87.954,10.231]
[1773155341018,3.97817226,87.991,87.929,3.78838998]
[1773155341219,3.97817226,87.991,87.893,20.476]
[1773155341220,3.97817226,87.989,87.894,3.78838998]
[1773155341425,3.97817226,87.969,87.894,3.78838998]
[1773155341627,3.97817226,87.967,87.894,3.78838998]
[1773155342422,20.449,88.009,87.845,3.78838998]
[1773155342423,3.97817226,87.929,87.845,3.78838998]
[1773155342616,8.85885583,87.95,87.845,3.78838998]
[1773155342617,3.97817226,87.909,87.845,3.78838998]
[1773155343021,3.97817226,87.909,87.846,10.243]
[1773155343421,3.97817226,87.907,87.846,10.243]
[1773155343619,3.97817226,87.889,87.824,3.78838998]
[1773155343827,3.97817226,87.869,87.801,3.78838998]
[1773155345026,3.97817226,87.869,87.825,10.246]
[1773155345321,3.97817226,87.869,87.801,3.78838998]
[1773155345512,8.85885583,87.87,87.801,3.78838998]
[1773155346119,3.97817226,87.883,87.824,10.246]
[1773155346427,3.97817226,87.883,87.801,3.78838998]
[1773155346726,3.97817226,87.869,87.776,3.78838998]
[1773155347227,8.85885583,87.85,87.789,10.25]
[1773155347522,8.85885583,87.86,87.776,3.78838998]
[1773155347920,3.97817226,87.859,87.755,3.78838998]
[1773155348125,3.97817226,87.859,87.74,20.511]
[1773155348126,8.85885583,87.84,87.776,3.78838998]
[1773155348323,3.97817226,87.839,87.776,3.78838998]
[1773155348822,8.85885583,87.86,87.776,3.78838998]
[1773155349425,3.97817226,87.88,87.794,3.78838998]
[1773155349627,12.83702809,87.88,87.794,3.78838998]
[1773155349824,3.97817226,87.875,87.805,3.78838998]
[1773155350024,3.97817226,87.875,87.786,3.78838998]
[1773155350225,3.97817226,87.875,87.791,3.78838998]
[1773155350725,3.97817226,87.872,87.791,3.78838998]
[1773155351728,3.97817226,87.879,87.811,10.247]
[1773155351929,3.97817226,87.859,87.791,3.78838998]
[1773155352132,3.97817226,87.859,87.776,3.78838998]
[1773155353326,3.97817226,87.855,87.787,10.25]
[1773155353725,3.97817226,87.855,87.776,3.78838998]
[1773155354036,3.97817226,87.876,87.804,3.78838998]
[1773155354622,3.97817226,87.876,87.825,10.246]
[1773155354932,3.97817226,87.876,87.804,3.78838998]
[1773155355932,3.97817226,87.876,87.823,10.246]
[1773155356131,3.97817226,87.899,87.804,3.78838998]
[1773155356335,3.97817226,87.919,87.86,10.242]
[1773155356631,3.97817226,87.919,87.843,3.78838998]
[1773155356632,3.97817226,87.938,87.843,3.78838998]
[1773155357132,3.97817226,87.934,87.867,10.241]
[1773155357836,3.97817226,87.919,87.855,10.242]
[1773155358834,3.97817226,87.906,87.843,10.243]
[1773155359235,3.97817226,87.906,87.823,3.78838998]
[1773155359531,3.66922798,87.899,87.823,3.78838998]
[1773155361038,3.66922798,87.918,87.823,3.78838998]
[1773155361530,3.66922798,87.915,87.852,10.242]
[1773155361731,3.66922798,87.915,87.842,3.76468074]
[1773155362724,3.66922798,87.912,87.842,3.76468074]
[1773155363431,8.85885583,87.92,87.845,10.243]
[1773155363432,3.66922798,87.91,87.845,10.243]
[1773155364035,3.66922798,87.903,87.836,10.244]
[1773155364229,3.66922798,87.899,87.836,10.244]
[1773155364633,3.66922798,87.899,87.846,10.243]
[1773155365331,3.66922798,87.899,87.837,10.244]
[1773155366135,3.66922798,87.899,87.821,3.76468074]
[1773155366136,3.66922798,87.898,87.845,10.243]
[1773155366538,3.66922798,87.898,87.821,3.76468074]
[1773155367539,3.66922798,87.894,87.835,10.244]
[1773155368333,3.66922798,87.894,87.843,10.244]
[1773155369033,3.66922798,87.916,87.851,3.76468074]
[1773155370038,3.66922798,87.916,87.832,3.76468074]
[1773155370538,3.66922798,87.963,87.89,8.85885583]
[1773155370737,3.66922798,87.963,87.891,3.76468074]
[1773155371534,3.66922798,87.939,87.86,3.76468074]
[1773155371732,3.66922798,87.939,87.841,3.76468074]
[1773155371940,3.66922798,87.919,87.841,3.76468074]
[1773155372233,3.66922798,87.911,87.857,10.242]
[1773155372436,3.66922798,87.911,87.841,3.76468074]
[1773155372838,3.66922798,87.911,87.865,10.241]
[1773155374045,3.66922798,87.93,87.841,3.76468074]
[1773155374943,3.66922798,87.93,87.887,10.238]
[1773155375341,3.66922798,87.93,87.864,3.76468074]
[1773155376341,3.66922798,87.93,87.808,44.02035542]
[1773155376342,3.66922798,87.909,87.82,8.85885583]
[1773155376541,3.66922798,87.909,87.821,3.76468074]
[1773155376745,3.66922798,87.889,87.821,3.76468074]
[1773155377046,3.66922798,87.889,87.834,10.245]
[1773155377243,3.66922798,87.889,87.821,3.76468074]
[1773155377843,8.85885583,87.9,87.821,3.76468074]
[1773155378045,8.85885583,87.9,87.84,10.244]
[1773155378343,3.66922798,87.908,87.821,3.76468074]
[1773155378557,3.66922798,87.908,87.844,3.76468074]
[1773155379548,3.66922798,87.908,87.849,10.243]
[1773155380048,3.66922798,87.908,87.844,3.76468074]
[1773155381443,3.66922798,87.908,87.858,10.242]
[1773155382546,3.66922798,87.908,87.848,10.243]
[1773155384448,3.66922798,87.905,87.838,10.244]
[1773155384748,3.66922798,87.899,87.838,10.244]
[1773155385154,3.66922798,87.899,87.825,3.76468074]
[1773155385155,3.66922798,87.899,87.848,10.243]
[1773155386448,3.66922798,87.899,87.843,3.76468074]
[1773155386649,8.85885583,87.92,87.856,10.242]
[1773155386650,3.65113889,87.919,87.856,10.242]
[1773155387251,3.65113889,87.916,87.856,10.242]
[1773155388556,3.65113889,87.916,87.867,10.241]
[1773155388956,3.65113889,87.916,87.856,3.88926163]
[1773155389156,3.89163889,87.915,87.848,10.243]
[1773155389357,3.89163889,87.915,87.842,3.97607664]
[1773155389961,3.89163889,87.913,87.825,3.97607664]
[1773155390262,3.89163889,87.899,87.825,3.97607664]
[1773155390459,3.89163889,87.872,87.807,10.248]
[1773155390762,3.89163889,87.872,87.787,3.97607664]
[1773155391064,8.87827268,87.9,87.757,20.508]
[1773155391065,3.89163889,87.85,87.789,10.25]
[1773155391965,3.89163889,87.85,87.778,10.251]
[1773155392161,3.89163889,87.839,87.778,10.251]
[1773155392362,3.89163889,87.839,87.741,3.97607664]
[1773155392763,3.89163889,87.829,87.777,10.251]
[1773155392967,3.89163889,87.829,87.759,3.97607664]
[1773155393468,3.89163889,87.829,87.775,10.251]
[1773155394163,3.89163889,87.829,87.759,3.97607664]
[1773155394667,14.13663889,87.829,87.759,3.97607664]
[1773155395269,14.13663889,87.829,87.771,10.252]
[1773155395570,3.89163889,87.829,87.759,3.97607664]
[1773155396272,10.243,87.849,87.761,3.97607664]
[1773155396570,3.89163889,87.848,87.761,3.97607664]
[1773155396770,3.89163889,87.837,87.761,3.97607664]
[1773155397163,3.89163889,87.859,87.761,3.97607664]
[1773155397372,10.243,87.852,87.796,10.249]
[1773155397569,3.89163889,87.851,87.779,3.97607664]
[1773155399369,182.06,87.892,87.733,20.513]
[1773155399370,3.89163889,87.839,87.761,3.97607664]
[1773155399771,3.89163889,87.823,87.761,3.97607664]
[1773155401372,10.246,87.82,87.762,10.253]
[1773155401567,3.89163889,87.823,87.761,3.97607664]
[1773155402165,10.5068537,87.875,87.742,3.97607664]
[1773155402166,3.89163889,87.819,87.742,3.97607664]
[1773155402470,3.89163889,87.799,87.711,3.97607664]
[1773155403470,3.89163889,87.799,87.728,3.97607664]
[1773155403675,3.89163889,87.779,87.708,3.97607664]
[1773155403868,14.14363889,87.77,87.712,10.259]
[1773155404270,14.14363889,87.77,87.708,3.97607664]
[1773155404571,3.89163889,87.77,87.72,10.258]
[1773155405171,20.492,87.823,87.708,3.97607664]
[1773155405172,10.25,87.789,87.708,3.97607664]
[1773155405366,3.89163889,87.788,87.708,3.97607664]
[1773155405570,3.89163889,87.779,87.717,10.258]
[1773155405769,3.89163889,87.767,87.688,3.97607664]
[1773155406373,11.18716683,87.824,87.688,3.97607664]
[1773155406374,3.89163889,87.759,87.688,3.97607664]
[1773155407076,3.89163889,87.759,87.633,1.98393469]
[1773155407077,3.89163889,87.739,87.661,3.97607664]
[1773155407467,20.503,87.778,87.618,3.97607664]
[1773155407468,3.89163889,87.716,87.618,3.97607664]
[1773155408367,3.89163889,87.716,87.642,3.97607664]
[1773155409767,3.89163889,87.735,87.651,3.97607664]
[1773155410279,3.89163889,87.756,87.717,10.258]
[1773155410482,3.89163889,87.756,87.693,3.97607664]
[1773155410777,3.89163889,87.776,87.716,10.258]
[1773155410968,3.89163889,87.776,87.693,3.97607664]
[1773155411165,3.89163889,87.764,87.693,3.97607664]
[1773155411369,3.89163889,87.764,87.67,12.85434932]
[1773155411568,3.89163889,87.749,87.67,3.97607664]
[1773155411770,3.89163889,87.739,87.673,10.263]
[1773155412364,3.89163889,87.739,87.651,3.97607664]
[1773155412365,3.89163889,87.735,87.663,10.265]
[1773155412568,3.89163889,87.735,87.651,3.97607664]
[1773155413173,8.87827268,87.75,87.651,3.97607664]
[1773155413174,3.89163889,87.73,87.651,3.97607664]
[1773155413974,3.89163889,87.728,87.651,3.97607664]
[1773155414574,3.89163889,87.725,87.657,10.265]
[1773155414879,3.89163889,87.725,87.658,3.97607664]
[1773155415279,10.258,87.724,87.659,10.265]
[1773155415479,3.89163889,87.724,87.658,3.97607664]
[1773155415978,3.89163889,87.724,87.658,14.24107664]
[1773155416372,10.259,87.714,87.658,3.97607664]
[1773155416578,3.89163889,87.724,87.658,3.97607664]
[1773155416974,10.259,87.715,87.658,3.97607664]
[1773155417177,3.89163889,87.714,87.658,3.97607664]
[1773155417381,3.89163889,87.714,87.636,3.97607664]
[1773155418080,3.89163889,87.704,87.64,10.267]
[1773155418374,3.89163889,87.704,87.636,3.97607664]
[1773155418974,8.87827268,87.72,87.636,3.97607664]
[1773155419277,3.89163889,87.723,87.651,3.88008534]
[1773155419478,3.89163889,87.723,87.678,10.263]
[1773155419667,3.89163889,87.723,87.651,3.88008534]
[1773155419868,3.89163889,87.723,87.675,10.263]
[1773155420073,8.87827268,87.74,87.675,14.14308534]
[1773155420273,3.98229027,87.739,87.675,14.14308534]
[1773155420574,3.98229027,87.769,87.675,3.88008534]
[1773155421279,3.98229027,87.768,87.681,3.88008534]
[1773155422574,10.254,87.75,87.689,10.261]
[1773155422975,3.98229027,87.768,87.681,3.88008534]
[1773155423181,3.98229027,87.768,87.707,10.259]
[1773155424380,3.98229027,87.768,87.715,10.258]
[1773155424674,3.98229027,87.768,87.701,3.88008534]
[1773155425180,20.496,87.807,87.701,3.88008534]
[1773155425181,3.98229027,87.756,87.701,3.88008534]
[1773155426373,10.254,87.753,87.701,3.88008534]
[1773155428280,159.372,87.832,87.701,3.88008534]
[1773155428281,3.98229027,87.789,87.701,3.88008534]
[1773155428474,3.98229027,87.789,87.711,3.88008534]
[1773155428876,3.98229027,87.789,87.741,10.255]
[1773155429272,3.98229027,87.808,87.742,3.88008534]
[1773155429879,3.98229027,87.808,87.747,10.255]
[1773155430083,15.47235823,87.841,87.751,3.88008534]
[1773155430283,3.98229027,87.84,87.751,3.88008534]
[1773155431475,3.98229027,87.869,87.773,3.88008534]
[1773155433383,3.98229027,87.869,87.791,3.88008534]
[1773155433780,10.242,87.858,87.795,10.249]
[1773155433985,3.98229027,87.869,87.791,3.88008534]
[1773155434588,3.98229027,87.86,87.791,3.88008534]
[1773155435293,3.98229027,87.86,87.802,3.88008534]
[1773155435590,3.98229027,87.879,87.802,3.88008534]
[1773155435779,10.241,87.866,87.802,3.88008534]
[1773155436185,3.98229027,87.879,87.802,3.88008534]
[1773155437182,3.98229027,87.879,87.815,3.88008534]
[1773155437386,8.87827268,87.9,87.815,3.88008534]
[1773155437387,12.86056295,87.9,87.815,3.88008534]
[1773155437786,10.237,87.898,87.835,10.244]
[1773155438290,3.98229027,87.9,87.81,8.87827268]
[1773155438291,3.98229027,87.9,87.84,14.12408534]
[1773155438788,3.98229027,87.9,87.841,3.88008534]
[1773155439097,10.237,87.897,87.841,3.88008534]
[1773155439290,3.98229027,87.9,87.841,3.88008534]
[1773155439796,14.21729027,87.917,87.843,3.88008534]
[1773155439994,3.98229027,87.916,87.843,3.88008534]
[1773155440888,3.98229027,87.911,87.844,10.243]
[1773155441089,3.98229027,87.911,87.79,8.87827268]
[1773155441090,3.98229027,87.911,87.845,3.88008534]
[1773155441391,3.98229027,87.911,87.761,9.90035542]
[1773155441392,3.98229027,87.967,87.905,10.236]
[1773155441987,3.98229027,87.967,87.906,3.88008534]
[1773155442191,3.98229027,87.979,87.908,3.88008534]
[1773155442484,3.98229027,87.979,87.887,3.88008534]
[1773155442684,3.98229027,87.979,87.87,8.87827268]
[1773155442685,3.98229027,87.964,87.89,3.88008534]
[1773155442885,8.87827268,87.98,87.891,3.88008534]
[1773155443588,3.98229027,87.986,87.911,3.88008534]
[1773155443993,8.87827268,88.0,87.911,3.88008534]
[1773155443994,3.98229027,87.999,87.911,3.88008534]
[1773155444187,3.98229027,87.979,87.911,3.88008534]
[1773155445397,10.228,87.975,87.911,3.88008534]
[1773155445697,3.98229027,87.979,87.911,3.88008534]
[1773155446299,3.98229027,87.979,87.913,3.88008534]
[1773155446596,19.10527268,87.99,87.913,3.88008534]
[1773155446597,10.227,87.99,87.913,3.88008534]
[1773155447195,4.01259737,87.978,87.913,3.88008534]
[1773155448001,4.01259737,87.978,87.914,10.235]
[1773155448198,4.01259737,87.997,87.915,3.97707459]
[1773155448798,10.226,87.996,87.915,3.97707459]
[1773155449701,10.227,87.988,87.925,3.91407189]
[1773155450202,10.227,87.988,87.926,10.234]
[1773155450399,8.87827268,88.01,87.925,3.91407189]
[1773155450598,12.66596606,88.01,87.925,3.91407189]
[1773155450801,3.78769338,88.009,87.925,3.91407189]
[1773155451002,3.78769338,88.006,87.935,10.233]
[1773155451404,20.436,88.066,87.925,3.91407189]
[1773155451405,12.66596606,88.02,87.925,3.91407189]
[1773155451704,3.78769338,88.019,87.944,10.232]
[1773155451904,3.78769338,87.999,87.943,3.91407189]
[1773155452098,3.78769338,87.999,87.911,3.91407189]
[1773155452303,10.227,87.982,87.911,3.91407189]
[1773155452504,8.85816591,87.98,87.911,3.91407189]
[1773155453102,12.64585929,87.98,87.911,3.91407189]
[1773155453405,10.228,87.979,87.913,10.235]
[1773155453604,3.78769338,87.978,87.913,10.235]
[1773155454005,3.78769338,87.978,87.922,10.234]
[1773155454402,3.78769338,87.978,87.911,3.91407189]
[1773155454906,8.85816591,87.96,87.874,3.91407189]
[1773155455394,8.85816591,87.96,87.901,10.237]
[1773155456299,3.78769338,87.958,87.892,3.91407189]
[1773155457205,10.232,87.944,87.879,10.239]
[1773155457602,3.78769338,87.969,87.88,3.91407189]
[1773155457802,8.85816591,87.95,87.88,3.91407189]
[1773155458206,3.78769338,87.948,87.883,10.239]
[1773155458801,3.78769338,87.948,87.883,14.15307189]
[1773155459105,3.78769338,87.948,87.892,10.238]
[1773155460500,10.232,87.946,87.892,10.238]
[1773155460699,10.232,87.946,87.883,3.91407189]
[1773155460700,8.85816591,87.95,87.9,10.237]
[1773155461703,3.78769338,87.967,87.908,10.236]
[1773155461906,3.78769338,87.985,87.909,3.91407189]
[1773155462109,3.78769338,87.979,87.909,3.91407189]
[1773155462303,8.85816591,87.96,87.909,3.91407189]
[1773155462508,8.85816591,88.02,87.851,3.91407189]
[1773155462509,3.78769338,87.939,87.851,3.91407189]
[1773155462706,8.85816591,87.92,87.851,3.91407189]
[1773155463412,3.78769338,87.928,87.851,3.91407189]
[1773155463605,3.78769338,87.919,87.851,3.91407189]
[1773155463810,3.78769338,87.899,87.811,3.91407189]
[1773155464104,3.78769338,87.899,87.832,3.91407189]
[1773155464304,3.78769338,87.899,87.791,3.91407189]
[1773155465007,10.239,87.88,87.816,3.91407189]
[1773155465204,19.09716591,87.88,87.816,3.91407189]
[1773155465404,3.78769338,87.879,87.816,3.91407189]
[1773155465604,3.78769338,87.872,87.816,10.247]
[1773155466009,3.78769338,87.872,87.786,3.91407189]
[1773155466308,8.85816591,87.88,87.806,3.91407189]
[1773155466713,3.78769338,87.879,87.811,10.247]
[1773155467010,3.78769338,87.859,87.771,3.91407189]
[1773155467611,3.78769338,87.839,87.771,3.91407189]
[1773155468105,3.78769338,87.839,87.781,10.251]
[1773155468106,14.03169338,87.839,87.781,10.251]
[1773155468408,3.78769338,87.838,87.751,3.91407189]
[1773155469405,14.03269338,87.832,87.76,10.253]
[1773155469608,8.85816591,87.82,87.77,3.91407189]
[1773155469814,8.85816591,87.84,87.77,3.91407189]
[1773155470210,8.85816591,87.86,87.771,3.91407189]
[1773155470709,3.78769338,87.859,87.79,3.91407189]
[1773155471611,3.78769338,87.859,87.806,10.248]
[1773155471801,3.78769338,87.859,87.79,3.91407189]
[1773155472202,3.78769338,87.856,87.796,10.249]
[1773155473512,10.242,87.855,87.796,10.249]
[1773155474415,3.78769338,87.856,87.805,10.248]
[1773155474716,3.78769338,87.856,87.79,3.91407189]
[1773155475707,3.78769338,87.856,87.795,10.249]
[1773155476418,3.78769338,87.856,87.79,3.91407189]
[1773155476419,10.243,87.844,87.79,3.91407189]
[1773155476815,3.78769338,87.856,87.793,10.249]
[1773155477112,8.85816591,87.82,87.753,3.91407189]
[1773155477312,3.78769338,87.819,87.753,3.91407189]
[1773155477617,3.78769338,87.818,87.753,3.91407189]
[1773155477818,3.78769338,87.818,87.734,3.91407189]
[1773155478213,3.78769338,87.798,87.734,3.91407189]
[1773155479219,10.249,87.793,87.734,3.91407189]
[1773155479415,3.78769338,87.798,87.734,3.91407189]
[1773155479910,3.78769338,87.798,87.751,10.254]
[1773155480115,3.78769338,87.798,87.734,3.91407189]
[1773155480708,3.78769338,87.798,87.751,10.254]
[1773155483016,8.85816591,87.82,87.76,10.253]
[1773155483213,8.85816591,87.82,87.752,3.75765377]
[1773155483214,3.89807236,87.825,87.752,3.75765377]
[1773155483410,3.89807236,87.819,87.752,3.75765377]
[1773155483818,3.89807236,87.819,87.733,3.75765377]
[1773155484017,10.25,87.791,87.733,14.01365377]
[1773155484210,3.89807236,87.819,87.733,3.75765377]
[1773155485115,8.85816591,87.84,87.733,3.75765377]
[1773155485116,3.89807236,87.792,87.733,3.75765377]
[1773155485718,3.89807236,87.812,87.744,3.75765377]
[1773155486123,3.89807236,87.83,87.744,3.75765377]
[1773155486318,3.89807236,87.83,87.765,10.253]
[1773155486319,10.247,87.817,87.765,10.253]
[1773155486623,3.89807236,87.83,87.762,3.75765377]
[1773155487324,10.246,87.826,87.773,10.252]
[1773155487728,3.89807236,87.83,87.762,3.75765377]
[1773155488627,3.89807236,87.819,87.743,3.75765377]
[1773155488826,3.89807236,87.819,87.762,10.253]
[1773155489428,3.89807236,87.819,87.73,8.85816591]
[1773155489429,3.89807236,87.819,87.771,10.252]
[1773155489728,3.89807236,87.839,87.771,3.75765377]
[1773155490127,3.89807236,87.839,87.731,3.75765377]
[1773155490626,3.89807236,87.839,87.658,13.20203454]
[1773155490627,3.89807236,87.857,87.779,3.75765377]
[1773155491024,10.244,87.841,87.791,10.25]
[1773155491224,3.89807236,87.857,87.791,10.25]
[1773155491429,3.89807236,87.857,87.779,3.75765377]
[1773155492631,3.89807236,87.857,87.762,3.75765377]
[1773155493227,3.89807236,87.857,87.787,3.75765377]
[1773155494033,10.243,87.847,87.787,3.75765377]
[1773155494228,3.89807236,87.857,87.787,3.75765377]
[1773155495133,3.89807236,87.857,87.803,10.248]
[1773155495334,3.89807236,87.857,87.787,3.75765377]
[1773155495935,3.89807236,87.857,87.803,10.248]
[1773155496335,3.89807236,87.857,87.787,3.75765377]
[1773155496534,10.243,87.849,87.802,10.248]
[1773155497542,3.89807236,87.857,87.81,10.247]
[1773155497942,10.242,87.856,87.802,10.248]
[1773155498237,3.89807236,87.857,87.802,10.248]
[1773155499037,3.89807236,87.848,87.794,10.249]
[1773155499837,10.243,87.844,87.794,10.249]
[1773155500037,3.89807236,87.848,87.801,10.248]
[1773155500538,3.89807236,87.848,87.731,34.12]
[1773155500539,8.85816591,87.84,87.765,3.75765377]
[1773155500844,8.85816591,87.84,87.687,13.20203454]
[1773155500845,3.89807236,87.819,87.746,3.75765377]
[1773155501251,10.248,87.803,87.756,10.254]
[1773155502451,10.248,87.803,87.748,10.255]
[1773155502847,10.248,87.803,87.746,3.75765377]
[1773155503244,10.249,87.795,87.746,14.01265377]
[1773155504053,3.89807236,87.819,87.746,3.75765377]
[1773155504456,10.44194451,87.856,87.728,3.75765377]
[1773155504457,3.89807236,87.799,87.728,3.75765377]
[1773155504855,10.252,87.772,87.71,3.75765377]
[1773155505852,8.85816591,87.78,87.715,3.75765377]
[1773155506255,3.89807236,87.794,87.715,3.75765377]
[1773155506560,10.251,87.777,87.715,3.75765377]
[1773155506856,3.89807236,87.794,87.715,3.75765377]
[1773155508257,3.89807236,87.794,87.69,8.85816591]
[1773155508258,8.85816591,87.8,87.741,4.00706999]
[1773155508554,10.25,87.792,87.741,4.00706999]
[1773155509155,3.84488101,87.784,87.722,3.81837879]
[1773155509457,8.85816591,87.78,87.722,3.81837879]
[1773155510058,3.84488101,87.784,87.722,3.81837879]
[1773155511061,10.249,87.794,87.739,10.256]
[1773155511263,10.249,87.794,87.74,3.81837879]
[1773155512261,8.90231332,87.8,87.75,10.254]
[1773155512861,3.84488101,87.82,87.756,3.81837879]
[1773155513059,12.74719433,87.82,87.756,3.81837879]
[1773155513262,3.84488101,87.819,87.756,3.81837879]
[1773155514559,10.248,87.803,87.756,3.81837879]
[1773155514758,3.84488101,87.819,87.756,3.81837879]
[1773155516262,3.84488101,87.819,87.68,19.76121071]
[1773155516263,3.84488101,87.809,87.734,3.81837879]
[1773155516458,3.84488101,87.789,87.734,3.81837879]
[1773155516764,3.84488101,87.789,87.716,3.81837879]
[1773155517763,3.84488101,87.789,87.716,14.07637879]
[1773155518058,3.84488101,87.789,87.716,3.81837879]
[1773155518463,3.84488101,87.789,87.723,3.81837879]
[1773155519660,10.252,87.773,87.723,3.81837879]
[1773155520762,8.90231332,87.79,87.723,3.81837879]
[1773155520967,3.84488101,87.789,87.723,3.81837879]
[1773155521166,10.251,87.776,87.729,10.257]
[1773155521367,10.251,87.776,87.723,3.81837879]
[1773155521668,3.84488101,87.789,87.723,3.81837879]
[1773155521868,3.84488101,87.789,87.71,10.259]
[1773155522367,3.84488101,87.789,87.711,3.81837879]
[1773155522867,10.252,87.772,87.722,10.258]
[1773155523463,3.84488101,87.789,87.711,3.81837879]
[1773155524368,10.252,87.772,87.729,10.257]
[1773155524762,10.251,87.78,87.729,10.257]
[1773155524961,3.84488101,87.806,87.747,3.81837879]
[1773155525370,3.84488101,87.806,87.749,10.254]
[1773155525572,3.84488101,87.789,87.729,3.81837879]
[1773155525772,3.84488101,87.789,87.696,3.81837879]
[1773155526368,3.84488101,87.789,87.714,3.81837879]
[1773155528274,10.251,87.778,87.729,10.257]
[1773155529673,10.252,87.771,87.721,10.258]
[1773155529972,3.84488101,87.789,87.722,3.81837879]
[1773155530378,10.252,87.771,87.729,10.257]
[1773155530677,10.252,87.771,87.722,3.81837879]
[1773155531774,3.84488101,87.77,87.705,3.81837879]
[1773155531973,3.84488101,87.769,87.705,3.81837879]
[1773155532370,10.255,87.745,87.698,10.26]
[1773155532980,3.84488101,87.739,87.688,14.08037879]
[1773155533169,3.84488101,87.739,87.688,3.81837879]
[1773155533375,3.84488101,87.769,87.688,3.81837879]
[1773155533573,8.90231332,87.77,87.702,10.26]
[1773155533574,10.255,87.745,87.702,10.26]
[1773155534373,10.256,87.738,87.692,10.261]
[1773155534680,3.84488101,87.737,87.67,3.81837879]
[1773155535076,8.90231332,87.74,87.691,10.261]
[1773155535477,8.90231332,87.74,87.686,3.81837879]
[1773155535677,3.84488101,87.739,87.653,3.81837879]
[1773155535879,10.257,87.73,87.686,10.262]
[1773155536277,10.258,87.715,87.667,10.264]
[1773155537479,3.84488101,87.729,87.675,10.263]
[1773155538483,14.10188101,87.728,87.675,10.263]
[1773155538877,14.10188101,87.728,87.667,3.81837879]
[1773155538878,8.90231332,87.74,87.667,3.81837879]
[1773155539079,3.84488101,87.739,87.667,3.81837879]
[1773155539679,3.73416644,87.719,87.652,278.80780782]
[1773155539874,3.73416644,87.719,87.652,282.81598146]
[1773155540083,3.73416644,87.713,87.657,10.265]
[1773155540878,3.73416644,87.705,87.653,4.00817364]
[1773155541577,3.73416644,87.699,87.618,4.00817364]
[1773155541975,8.90231332,87.72,87.6,4.00817364]
[1773155541976,3.73416644,87.679,87.6,4.00817364]
[1773155542185,3.73416644,87.668,87.602,10.272]
[1773155542375,3.73416644,87.668,87.6,4.00817364]
[1773155542575,8.90231332,87.68,87.6,4.00817364]
[1773155542983,10.264,87.67,87.611,4.00817364]
[1773155544382,10.264,87.67,87.615,10.27]
[1773155545083,8.90231332,87.68,87.623,10.269]
[1773155545679,8.90231332,87.68,87.63,10.268]
[1773155545878,3.73416644,87.679,87.591,4.00817364]
[1773155546678,8.90231332,87.68,87.591,4.00817364]
[1773155546679,3.73416644,87.669,87.609,10.271]
[1773155546987,3.73416644,87.659,87.591,4.00817364]
[1773155547975,3.73416644,87.681,87.599,4.00817364]
[1773155548180,8.90231332,87.69,87.601,4.00817364]
[1773155548380,3.73416644,87.689,87.601,4.00817364]
[1773155548777,3.73416644,87.679,87.622,4.00817364]
[1773155548982,8.90231332,87.72,87.605,4.00817364]
[1773155548983,3.73416644,87.669,87.605,4.00817364]
[1773155549479,8.90231332,87.67,87.616,4.00817364]
[1773155550186,10.264,87.669,87.621,10.269]
[1773155550485,8.90231332,87.67,87.621,10.269]
[1773155551085,8.90231332,87.67,87.63,10.268]
[1773155551285,10.263,87.678,87.63,10.268]
[1773155551791,13.99616644,87.687,87.63,10.268]
[1773155552084,3.73416644,87.687,87.63,10.268]
[1773155552482,10.263,87.68,87.634,10.268]
[1773155553078,10.263,87.68,87.631,4.00817364]
[1773155554084,10.263,87.68,87.632,10.268]
[1773155554383,3.73416644,87.687,87.632,10.268]
[1773155554681,3.73416644,87.687,87.632,14.27617364]
[1773155555287,10.262,87.685,87.635,10.268]
[1773155555692,10.262,87.685,87.636,4.00817364]
[1773155556184,3.73416644,87.687,87.618,4.00817364]
[1773155557481,10.262,87.685,87.639,10.267]
[1773155557681,8.90231332,87.69,87.634,4.00817364]
[1773155557890,3.73416644,87.704,87.655,10.265]
[1773155558082,3.73416644,87.704,87.634,4.00817364]
[1773155559080,3.73416644,87.704,87.636,4.00817364]
[1773155559081,10.262,87.683,87.636,4.00817364]